fUSD/lending_fUSD_20251126
["ID","MTS","AMOUNT","RATE_DAILY","PERIOD"]
[394936085,1764165032083,-3030.56827518,0.00016575,2]
[394936087,1764165032092,-150.0,0.00016592,2]
[394936089,1764165032101,-1622.08172482,0.00016627,2]
[394936176,1764165037717,-960.35,0.00016067,2]
[394936177,1764165037947,-1790.65,0.00016067,2]
[394936178,1764165037958,-402.928375,0.00016627,2]
[394936188,1764165039902,-12619.58990018,0.00016627,2]
[394936189,1764165039912,-166.6,0.00016628,2]
[394936190,1764165039921,-2076.68,0.00016676,2]
[394936191,1764165039930,-250.0,0.00016701,2]
[394936192,1764165039939,-712.34,0.00016725,2]
[394936193,1764165039948,-864.63,0.00016748,2]
[394936194,1764165039957,-984.58,0.00016774,2]
[394936195,1764165039966,-150.0,0.000168,2]
[394936196,1764165039975,-150.0,0.000168,2]
[394936197,1764165039984,-150.0,0.000168,2]
[394936198,1764165039994,-582.12577015,0.000169,2]
[394936199,1764165040004,-640.0,0.00016908,2]
[394936200,1764165040014,-30757.6997619,0.00016918,2]
[394936201,1764165040024,-2380.7072241,0.00016918,2]
[394936202,1764165040033,-9999.99,0.00016972,2]
[394936203,1764165040043,-299.99,0.00016972,4]
[394936204,1764165040052,-172.04253759,0.00016973,2]
[394936205,1764165040061,-1726.87,0.00016973,2]
[394936206,1764165040072,-9999.99,0.00016973,2]
[394936207,1764165040081,-150.99,0.00016973,2]
[394936208,1764165040091,-255.83,0.00016973,2]
[394936209,1764165040100,-7334.16,0.00016973,2]
[394936210,1764165040109,-18857.62,0.00016973,2]
[394936211,1764165040118,-1287.38,0.00016973,2]
[394936212,1764165040128,-10761.0,0.00016973,2]
[394936213,1764165040137,-5331.75,0.00016973,2]
[394936214,1764165040146,-4193.89,0.00016973,2]
[394936215,1764165040155,-501.12589064,0.00016973,2]
[394936216,1764165040165,-157.24414941,0.00016973,2]
[394936217,1764165040181,-500.0,0.00016973,2]
[394936218,1764165040190,-500.0,0.00016973,2]
[394936219,1764165040201,-500.31812706,0.00016973,2]
[394936220,1764165040210,-500.0,0.00016973,2]
[394936221,1764165040221,-391.53224932,0.00016973,2]
[394936222,1764165040231,-500.0,0.00016973,2]
[394936223,1764165040241,-361.35820226,0.00016973,2]
[394936224,1764165040250,-222437.00744056,0.00017,2]
[394936225,1764165040259,-361.30811687,0.00017,2]
[394936226,1764165040269,-582.1257701,0.00017011,2]
[394936227,1764165040278,-864.63,0.00017022,2]
[394936228,1764165040287,-150.0,0.000171,2]
[394936229,1764165040296,-150.0,0.000171,2]
[394936230,1764165040305,-150.0,0.000171,2]
[394936231,1764165040315,-361.30811682,0.000171,2]
[394936232,1764165040324,-582.1257701,0.00017122,2]
[394936233,1764165040333,-361.30811682,0.000172,2]
[394936234,1764165040342,-582.1257701,0.00017233,2]
[394936235,1764165040351,-483.36,0.00017254,2]
[394936236,1764165040361,-864.63,0.00017296,2]
[394936237,1764165040370,-361.30811682,0.000173,2]
[394936238,1764165040379,-582.1257701,0.00017344,2]
[394936240,1764165040388,-150.0,0.000174,2]
[394936242,1764165040397,-150.0,0.000174,2]
[394936244,1764165040407,-150.0,0.000174,2]
[394936246,1764165040417,-361.30811682,0.000174,2]
[394936248,1764165040426,-153.65,0.00017431,2]
[394936250,1764165040435,-3668.35,0.00017438,2]
[394936252,1764165040444,-582.1257701,0.00017456,2]
[394936254,1764165040454,-361.30811682,0.000175,2]
[394936256,1764165040463,-236.90945051,0.00017521,2]
[394936258,1764165040472,-582.1257701,0.00017567,2]
[394936260,1764165040481,-864.63,0.0001757,2]
[394936262,1764165040491,-361.30811682,0.000176,2]
[394936265,1764165040501,-582.1257701,0.00017678,2]
[394936268,1764165040510,-150.0,0.000177,2]
[394936270,1764165040523,-361.30811682,0.000177,2]
[394936272,1764165040532,-302.06143386,0.00017706,2]
[394936274,1764165040541,-287.0,0.00017707,2]
[394936276,1764165040550,-420.0,0.00017707,2]
[394936278,1764165040559,-582.1257701,0.00017789,2]
[394936280,1764165040568,-167.0,0.00017796,2]
[394936282,1764165040577,-361.30811682,0.000178,2]
[394936284,1764165040587,-195.0,0.0001782,2]
[394936286,1764165040596,-250.0,0.0001782,2]
[394936288,1764165040605,-864.63,0.00017844,2]
[394936290,1764165040614,-164.00272964,0.000179,2]
[394936292,1764165040623,-150.69072968,0.000179,2]
[394936294,1764165040632,-150.0,0.000179,2]
[394936296,1764165040641,-150.0,0.000179,2]
[394936298,1764165040649,-150.0,0.000179,2]
[394936300,1764165040658,-150.0,0.000179,2]
[394936302,1764165040667,-201.62347752,0.000179,2]
[394936304,1764165040676,-150.0,0.000179,2]
[394936306,1764165040685,-361.30811682,0.000179,2]
[394936308,1764165040694,-150.0,0.000179,2]
[394936310,1764165040703,-150.0,0.000179,2]
[394936312,1764165040712,-150.0,0.000179,2]
[394936314,1764165040721,-150.0,0.000179,2]
[394936316,1764165040730,-150.0,0.000179,2]
[394936318,1764165040739,-150.0,0.000179,2]
[394936319,1764165040751,-150.0,0.000179,2]
[394936322,1764165040760,-167.84750742,0.000179,2]
[394936325,1764165040784,-151.96776466,0.000179,2]
[394936327,1764165040793,-500.0,0.000179,2]
[394936329,1764165040803,-150.0,0.000179,2]
[394936331,1764165040817,-150.0,0.000179,2]
[394936333,1764165040828,-171.11165714,0.000179,2]
[394936336,1764165040841,-582.1257701,0.000179,2]
[394936337,1764165040851,-500.0,0.00017973,2]
[394936340,1764165040860,-500.0,0.00017973,2]
[394936341,1764165040869,-500.0,0.00017973,2]
[394936343,1764165040879,-4817.0,0.00018,2]
[394936345,1764165040888,-150.0,0.00018,2]
[394936347,1764165040897,-150.0,0.00018,2]
[394936349,1764165040906,-152.61401388,0.00018,2]
[394936351,1764165040916,-150.0,0.00018,2]
[394936353,1764165040925,-150.0,0.00018,2]
[394936355,1764165040934,-150.0,0.00018,2]
[394936357,1764165040942,-150.0,0.00018,2]
[394936359,1764165040952,-313689.33378014,0.00018,2]
[394936361,1764165040964,-3230.88646812,0.00018,2]
[394936364,1764165040980,-2627.5757803,0.00018,2]
[394936366,1764165040991,-1493.6698904,0.00018,2]
[394936368,1764165041001,-1421.76578285,0.00018,2]
[394936371,1764165041012,-435760.43873852,0.00018,2]
[394936373,1764165041023,-530.6,0.00018,2]
[394936375,1764165041038,-10166.56694962,0.00018,2]
[394936378,1764165041049,-11710.31536572,0.00018,2]
[394936398,1764165043568,-500.0,0.00018,2]
[394936399,1764165043580,-1128.1501817,0.00018,2]
[394936400,1764165044462,-867.26068256,0.00018,2]
[394936410,1764165045954,-818.8179996,0.00018,2]
[394936411,1764165046016,-2106.9971997,0.00018,2]
[394936412,1764165046131,-39133.573455,0.00018,2]
[394936416,1764165128338,500.0,0.00042063,30]
[394936418,1764165176659,-150.0,0.00016452,2]
[394936419,1764165176683,-1666.31785913,0.00016872,2]
[394936420,1764165176706,-1200.0,0.00016971,2]
[394936421,1764165176733,-500.0,0.00016972,2]
[394936422,1764165176759,-500.0,0.00016972,2]
[394936423,1764165176783,-500.0,0.00016972,2]
[394936424,1764165176812,-450.0,0.00016972,2]
[394936425,1764165176837,-500.0,0.00016972,2]
[394936426,1764165176862,-500.0,0.00016972,2]
[394936427,1764165176890,-500.0,0.00016972,2]
[394936428,1764165176915,-500.0,0.00016972,2]
[394936429,1764165176943,-500.0,0.00016972,2]
[394936430,1764165176970,-500.0,0.00016972,2]
[394936431,1764165176996,-500.0,0.00016972,2]
[394936432,1764165177022,-500.0,0.00016972,2]
[394936433,1764165177047,-500.0,0.00016972,2]
[394936434,1764165177073,-500.0,0.00016972,2]
[394936435,1764165177098,-500.0,0.00016972,2]
[394936436,1764165177125,-500.0,0.00016972,2]
[394936437,1764165177150,-500.0,0.00016972,2]
[394936438,1764165177174,-500.0,0.00016972,2]
[394936439,1764165177201,-500.0,0.00016972,2]
[394936440,1764165177225,-500.0,0.00016972,2]
[394936441,1764165177251,-500.0,0.00016972,2]
[394936442,1764165177277,-500.0,0.00016972,2]
[394936443,1764165177303,-500.0,0.00016972,2]
[394936444,1764165177327,-500.0,0.00016972,2]
[394936445,1764165177352,-500.0,0.00016972,2]
[394936446,1764165177378,-500.0,0.00016972,2]
[394936447,1764165177415,-1666.31785909,0.00017078,2]
[394936448,1764165177440,-165.56177113,0.00017176,2]
[394936449,1764165177464,-195.0,0.00017176,2]
[394936450,1764165177488,-1666.31785909,0.00017283,2]
[394936451,1764165177512,-1666.31785909,0.00017489,2]
[394936452,1764165177536,-1666.31785909,0.00017694,2]
[394936453,1764165177559,-1666.31785909,0.000179,2]
[394936454,1764165177583,-500.0,0.00017973,2]
[394936455,1764165177606,-500.66301784,0.00017973,2]
[394936456,1764165177629,-500.21004251,0.00017973,2]
[394936457,1764165177651,-500.0,0.00017973,2]
[394936458,1764165177674,-500.0,0.00017973,2]
[394936459,1764165177698,-500.0,0.00017973,2]
[394936460,1764165177721,-500.0,0.00017973,2]
[394936461,1764165177744,-500.0,0.00017973,2]
[394936462,1764165177767,-894.10145082,0.00017979,2]
[394936463,1764165177796,-550.0,0.00017999,2]
[394936464,1764165177821,-396127.1399803,0.00017999,2]
[394936465,1764165177844,-13042.8391664,0.00017999,2]
[394936466,1764165177870,-4560726.57741642,0.00018,2]
[394936467,1764165182267,-300.0,0.00017999,2]
[394936468,1764165182291,-199777.17879117,0.00018,2]
[394936469,1764165182316,-644353.16181431,0.00018,2]
[394936470,1764165182339,-2078.2908744,0.00018,2]
[394936471,1764165182362,-1000.0,0.00018014,2]
[394936472,1764165182385,-150.0,0.00018037,2]
[394936473,1764165182409,-150.0,0.00018037,2]
[394936474,1764165182432,-150.0,0.00018037,2]
[394936475,1764165182456,-500.0,0.00018037,2]
[394936476,1764165182480,-150.0,0.00018037,2]
[394936477,1764165182504,-150.0,0.00018037,2]
[394936478,1764165182525,-193.0,0.00018097,2]
[394936479,1764165182550,-195.0,0.00018097,2]
[394936480,1764165182574,-300.0,0.00018097,2]
[394936481,1764165182597,-318.11245785,0.00018097,2]
[394936482,1764165182621,-864.63,0.00018118,2]
[394936483,1764165182644,-150.0,0.00018174,2]
[394936484,1764165182666,-150.0,0.00018174,2]
[394936485,1764165182688,-500.0,0.00018174,2]
[394936486,1764165182852,-200.0,0.00018174,2]
[394936487,1764165182881,-200.0,0.00018174,2]
[394936488,1764165182906,-153.65,0.00018189,2]
[394936489,1764165182931,-150.0,0.00018311,2]
[394936490,1764165182954,-150.0,0.00018311,2]
[394936491,1764165182978,-500.0,0.00018311,2]
[394936492,1764165183001,-864.63,0.00018392,2]
[394936493,1764165183027,-150.0,0.00018448,2]
[394936494,1764165183053,-150.0,0.00018448,2]
[394936495,1764165183077,-500.0,0.00018448,2]
[394936496,1764165183100,-1000.0,0.00018521,2]
[394936497,1764165183125,-250.0,0.00018585,2]
[394936498,1764165183148,-250.0,0.00018585,2]
[394936499,1764165183171,-500.0,0.00018585,2]
[394936500,1764165183194,-864.63,0.00018666,2]
[394936501,1764165183218,-500.0,0.00018722,2]
[394936502,1764165183241,-497.16961405,0.00018859,2]
[394936503,1764165183266,-864.63,0.0001894,2]
[394936504,1764165183290,-153.65,0.00018947,2]
[394936505,1764165183317,-640.0,0.00019022,2]
[394936506,1764165183341,-377.4547292,0.00019068,2]
[394936507,1764165183365,-156.16,0.00019101,2]
[394936508,1764165183392,-864.7,0.00019214,2]
[394936509,1764165183416,-21780.31453929,0.00019231,2]
[394936510,1764165183441,-6862.9704736,0.00019667,2]
[394936511,1764165183466,-153.65,0.00019705,2]
[394936512,1764165183489,-2000.0,0.00019751,2]
[394936513,1764165183513,-2704.17,0.00019837,2]
[394936514,1764165183537,-1500.0,0.0002,2]
[394936515,1764165183564,-1000.0,0.00020016,2]
[394936516,1764165183589,-150.0,0.0002028,2]
[394936517,1764165183612,-156.76790076,0.0002028,2]
[394936518,1764165183635,-213.45244763,0.0002028,2]
[394936519,1764165183657,-150.0,0.0002028,2]
[394936520,1764165183680,-203.76538744,0.0002028,2]
[394936521,1764165183703,-155.19687215,0.0002028,2]
[394936522,1764165183725,-150.0,0.0002028,2]
[394936523,1764165183749,-150.0,0.0002028,2]
[394936524,1764165183773,-150.0,0.0002028,2]
[394936525,1764165183798,-1531.3357008,0.0002028,2]
[394936526,1764165183824,-161.67566744,0.00020417,2]
[394936527,1764165183848,-200.0,0.00020417,2]
[394936528,1764165183875,-200.0,0.00020417,2]
[394936529,1764165183900,-153.65,0.00020463,2]
[394936530,1764165183924,-156.16,0.00020465,2]
[394936531,1764165183948,-88387.9121829,0.0002085,2]
[394936532,1764165183972,-500.0,0.00020873,2]
[394936533,1764165183996,-2910.2507919,0.00020965,2]
[394936534,1764165184019,-640.0,0.00021135,2]
[394936535,1764165184042,-153.65,0.00021221,2]
[394936536,1764165184067,-1000.0,0.00021421,2]
[394936537,1764165184091,-19722.0090005,0.00021486,2]
[394936538,1764165184115,-1892.91,0.00021587,2]
[394936539,1764165184138,-649.3647252,0.00021627,2]
[394936540,1764165184160,-6810.12,0.0002165,2]
[394936541,1764165184185,-156.16,0.0002183,2]
[394936542,1764165184208,-5000.0,0.00021918,2]
[394936543,1764165184232,-150.03,0.00021918,2]
[394936544,1764165184256,-1500.0,0.00021968,2]
[394936545,1764165184280,-2500.91656755,0.00022,4]
[394936546,1764165184305,-1000.0,0.00022017,2]
[394936547,1764165184328,-4337.56,0.000225,7]
[394936548,1764165184352,-2000.0,0.00022516,2]
[394936549,1764165184377,-1196.02,0.00022816,2]
[394936550,1764165184401,-300.0,0.00022844,2]
[394936551,1764165184425,-314.60516031,0.00022844,2]
[394936552,1764165184450,-500.0,0.00023064,2]
[394936553,1764165184475,-166.66,0.00023192,30]
[394936554,1764165184500,-156.16,0.00023194,2]
[394936555,1764165184525,-640.0,0.00023249,2]
[394936556,1764165184550,-201.85455642,0.00023452,2]
[394936557,1764165184575,-166.66,0.0002368,30]
[394936558,1764165184599,-168.0,0.00023687,2]
[394936559,1764165184624,-1500.0,0.000237,2]
[394936560,1764165184647,-167.84750742,0.00023916,2]
[394936561,1764165184671,-1000.0,0.00024019,2]
[394936562,1764165184695,-166.66,0.00024168,30]
[394936563,1764165184719,-156.16,0.00024558,2]
[394936564,1764165184744,-166.66,0.00024657,30]
[394936565,1764165184767,-8335.08173442,0.000249,3]
[394936566,1764165184792,-168.0,0.0002494,2]
[394936567,1764165184822,-2000.0,0.00025,30]
[394936568,1764165184846,-166.66,0.00025145,30]
[394936569,1764165184873,-168.0,0.00025321,2]
[394936570,1764165184899,-640.0,0.00025363,120]
[394936571,1764165184927,-168.0,0.00025487,2]
[394936572,1764165184952,-166.66,0.00025633,30]
[394936573,1764165184977,-156.16,0.00025923,2]
[394936574,1764165185002,-156.16,0.00027287,2]
[394936575,1764165185026,-500.0,0.00027397,5]
[394936576,1764165185055,-2656.66,0.00027671,2]
[394936577,1764165185079,-158.5,0.00028,7]
[394936578,1764165185103,-153.33,0.00028,7]
[394936579,1764165185127,-156.16,0.00028651,2]
[394936580,1764165185259,-5370.49,0.000287,2]
[394936581,1764165185285,-167.84750742,0.00029932,2]
[394936582,1764165185312,-156.16,0.00030016,2]
[394936583,1764165185336,-150.03,0.00030137,2]
[394936584,1764165185393,500.0,0.00042063,30]
[394936585,1764165185442,194.34700284,0.00042063,30]
[394936586,1764165185490,500.0,0.00042063,30]
[394936587,1764165185602,578.20924308,0.00042063,30]
[394936588,1764165185829,500.0,0.00042063,30]
[394936589,1764165186000,500.0,0.00042063,30]
[394936590,1764165186604,500.0,0.00042063,30]
[394936591,1764165186653,500.0,0.00042063,30]
[394936592,1764165187207,500.0,0.00042063,30]
[394936593,1764165187257,500.0,0.00042063,30]
[394936594,1764165187659,500.0,0.00042063,30]
[394936595,1764165187830,500.0,0.00042063,30]
[394936596,1764165187883,500.0,0.00042063,30]
[394936597,1764165188258,500.0,0.00042063,30]
[394936598,1764165188434,500.0,0.00042063,30]
[394936599,1764165188487,500.0,0.00042063,30]
[394936600,1764165188926,500.0,0.00042063,30]
[394936601,1764165189038,500.0,0.00042063,30]
[394936602,1764165189091,500.0,0.00042063,30]
[394936603,1764165189561,500.0,0.00042063,30]
[394936604,1764165189645,500.0,0.00042063,30]
[394936605,1764165189693,500.0,0.00042063,30]
[394936606,1764165190138,500.0,0.00042063,30]
[394936607,1764165190188,500.0,0.00042063,30]
[394936608,1764165190280,500.0,0.00042063,30]
[394936609,1764165190330,500.0,0.00042063,30]
[394936610,1764165190734,500.0,0.00042063,30]
[394936611,1764165190899,500.0,0.00042063,30]
[394936612,1764165190949,500.0,0.00042063,30]
[394936613,1764165191357,500.0,0.00042063,30]
[394936614,1764165191536,500.0,0.00042063,30]
[394936615,1764165191670,500.0,0.00042063,30]
[394936616,1764165192056,500.0,0.00042063,30]
[394936617,1764165192789,500.0,0.00042063,30]
[394936618,1764165193423,500.0,0.00042063,30]
[394936619,1764165194053,500.0,0.00042063,30]
[394936620,1764165194912,500.0,0.00042063,30]
[394936621,1764165195532,500.0,0.00042063,30]
[394936622,1764165195645,693.3919763,0.00042063,30]
[394936623,1764165196270,500.0,0.00042063,30]
[394936624,1764165196871,500.0,0.00042063,30]
[394936626,1764165228622,500.0,0.00042063,120]
[394936627,1764165228861,500.0,0.00042063,120]
[394936628,1764165229126,400.91,0.00042063,120]
[394936629,1764165246278,274.04751894,0.00042063,120]
[394936630,1764165247949,193.0,0.000198,120]
[394936631,1764165248054,165.56177113,0.00024195,120]
[394936632,1764165248708,195.0,0.000198,120]
[394936633,1764165248833,195.0,0.00024195,120]
[394936634,1764165263453,-154.71,0.00031164,30]
[394936635,1764165263479,-150.99,0.00033272,30]
[394936636,1764165263504,-1452.66067979,0.00033428,120]
[394936637,1764165263529,-9039.37,0.00033428,10]
[394936638,1764165263554,-455.363,0.00034492,39]
[394936639,1764165263580,-3087.2482,0.00038888,30]
[394936640,1764165263606,-964.0,0.00040671,10]
[394936641,1764165263632,-158.5,0.000408,14]
[394936642,1764165263658,-3569.48281197,0.0004155,15]
[394936643,1764165263685,-3569.4828119,0.00041596,15]
[394936644,1764165263711,-3569.4828119,0.00041642,15]
[394936645,1764165263738,-490.540049,0.0004165,30]
[394936646,1764165263766,-490.540049,0.0004165,30]
[394936647,1764165263793,-490.540049,0.0004165,30]
[394936648,1764165263819,-490.540049,0.0004165,30]
[394936649,1764165263845,-3569.4828119,0.00041688,15]
[394936650,1764165263872,-610.94518671,0.0004177,28]
[394936651,1764165263898,-155.16146394,0.0004177,15]
[394936652,1764165263929,-610.94518671,0.00041798,28]
[394936653,1764165263956,-610.94518671,0.00041825,28]
[394936654,1764165263986,-610.94518671,0.00041853,28]
[394936655,1764165264012,-302374.175,0.00041853,30]
[394936656,1764165264038,-155.16146394,0.00041867,15]
[394936657,1764165264062,-206.61365096,0.00041873,10]
[394936658,1764165264087,-537.9909748,0.00041873,10]
[394936659,1764165264111,-481.25424998,0.00041873,10]
[394936660,1764165264137,-503.84458665,0.00041873,10]
[394936661,1764165264161,-242865.69656186,0.0004188,30]
[394936662,1764165264189,-490.540049,0.0004188,30]
[394936663,1764165264215,-490.540049,0.0004188,30]
[394936664,1764165264242,-490.540049,0.0004188,30]
[394936665,1764165264269,-490.540049,0.0004188,30]
[394936666,1764165264295,-610.94518671,0.0004188,28]
[394936667,1764165264321,-610.94518671,0.00041908,28]
[394936668,1764165264346,-610.94518671,0.00041935,28]
[394936669,1764165264371,-3299.02473209,0.00041963,18]
[394936670,1764165264398,-610.94518671,0.00041963,28]
[394936671,1764165264424,-155.16146394,0.00041963,15]
[394936672,1764165264449,-643.857069,0.00042,30]
[394936673,1764165264474,-1625.54,0.00042,90]
[394936674,1764165264498,-567.0,0.00042,23]
[394936675,1764165264523,-1097.0,0.00042048,30]
[394936676,1764165264548,-5137.11373083,0.0004205,120]
[394936677,1764165264573,-793.42,0.00042052,30]
[394936678,1764165264598,-3000.87,0.00042052,30]
[394936679,1764165264623,-500.0,0.00042055,30]
[394936680,1764165264649,-500.0,0.00042055,30]
[394936681,1764165264674,-500.0,0.00042055,30]
[394936682,1764165264699,-500.0,0.00042055,30]
[394936683,1764165264724,-500.0,0.00042055,30]
[394936684,1764165264748,-500.0,0.00042055,30]
[394936685,1764165264772,-500.0,0.00042055,30]
[394936686,1764165264936,-486.196,0.00042055,30]
[394936687,1764165264969,-1000.0,0.00042055,30]
[394936688,1764165264998,-1000.0,0.00042055,30]
[394936689,1764165265024,-1000.0,0.00042055,30]
[394936690,1764165265048,-1000.0,0.00042055,30]
[394936691,1764165265072,-1000.0,0.00042055,30]
[394936692,1764165265096,-1000.0,0.00042055,30]
[394936693,1764165265120,-1000.0,0.00042055,30]
[394936694,1764165265145,-1000.0,0.00042055,30]
[394936695,1764165265169,-1000.0,0.00042055,30]
[394936696,1764165265194,-1000.0,0.00042055,30]
[394936697,1764165265218,-300.0,0.0004206,30]
[394936698,1764165265244,-2492.8485578,0.00042063,21]
[394936699,1764165265269,-490.540049,0.00042063,30]
[394936700,1764165265295,-490.540049,0.00042063,30]
[394936701,1764165265321,-490.540049,0.00042063,30]
[394936702,1764165265346,-490.540049,0.00042063,30]
[394936703,1764165265372,-490.540049,0.00042063,30]
[394936704,1764165265397,-490.540049,0.00042063,30]
[394936705,1764165265422,-490.540049,0.00042063,30]
[394936706,1764165265447,-490.540045,0.00042063,30]
[394936707,1764165265486,-213.548026,0.000421,30]
[394936708,1764165265510,-153.32,0.000421,30]
[394936709,1764165265534,-4833.44,0.000421,30]
[394936710,1764165265558,-1200.71,0.00042265,30]
[394936711,1764165265582,-360.83122345,0.0004244,120]
[394936712,1764165265605,-1537.0,0.000425,120]
[394936713,1764165265629,-4337.56,0.000425,14]
[394936714,1764165265652,-567.0,0.000425,25]
[394936715,1764165265676,-1200.71,0.00042539,30]
[394936716,1764165265699,-500.0,0.00042759,30]
[394936717,1764165265722,-364.62824927,0.000428,120]
[394936718,1764165265746,-1200.71,0.00042813,30]
[394936719,1764165265774,-214.0,0.0004295,30]
[394936720,1764165265803,-10000.0,0.0004299,30]
[394936721,1764165265827,-1985.87940511,0.00043,120]
[394936722,1764165265851,-150.0,0.00043,120]
[394936723,1764165265874,-324.91431576,0.00043,120]
[394936724,1764165265900,-550.38151774,0.00043,120]
[394936725,1764165265926,-183.86557079,0.00043,120]
[394936726,1764165265950,-785.5785523,0.00043,120]
[394936727,1764165265974,-500.0,0.00043,30]
[394936728,1764165265998,-500.0,0.00043,30]
[394936729,1764165266022,-500.0,0.00043,30]
[394936730,1764165266044,-500.0,0.00043,30]
[394936731,1764165266067,-857.89392018,0.00043,120]
[394936732,1764165266092,-300.0,0.00043,120]
[394936733,1764165266114,-567.0,0.00043,27]
[394936734,1764165266138,-204.23,0.00043014,120]
[394936735,1764165266162,-500.0,0.00043033,30]
[394936736,1764165266187,-1200.71,0.00043087,30]
[394936737,1764165266210,-2000.0,0.000431,120]
[394936738,1764165266232,-2014.0,0.000431,120]
[394936739,1764165266257,-154.71,0.00043151,120]
[394936740,1764165266280,-2084.42776706,0.000432,120]
[394936741,1764165266304,-375.0446,0.0004322,30]
[394936742,1764165266328,-500.0,0.00043307,30]
[394936743,1764165266352,-1200.71,0.00043361,30]
[394936744,1764165266376,-567.0,0.000435,29]
[394936745,1764165266401,-4833.44,0.000435,30]
[394936746,1764165266424,-500.0,0.00043581,30]
[394936747,1764165266448,-1200.71,0.00043635,30]
[394936748,1764165266472,-311.3965065,0.000437,120]
[394936749,1764165266495,-777.66686728,0.000438,120]
[394936750,1764165266518,-500.57691811,0.000438,30]
[394936751,1764165266541,-978.72101103,0.000438,30]
[394936752,1764165266564,-500.0,0.00043855,30]
[394936753,1764165266588,-1200.71,0.00043909,30]
[394936754,1764165266612,-1435.85988403,0.00043987,120]
[394936755,1764165266636,-10000.0,0.0004399,30]
[394936756,1764165266659,-349.0,0.00044,120]
[394936757,1764165266684,-176.0,0.00044,120]
[394936758,1764165266708,-152.0,0.00044,120]
[394936759,1764165266732,-547.10647974,0.00044,120]
[394936760,1764165266756,-332.67229607,0.00044,120]
[394936761,1764165266780,-271.56296464,0.00044,120]
[394936762,1764165266811,-1000.0,0.00044,120]
[394936763,1764165266837,-2288.16788763,0.00044,120]
[394936764,1764165266862,-400.0,0.00044,120]
[394936765,1764165266887,-567.0,0.00044,31]
[394936766,1764165266913,-425.364487,0.00044,57]
[394936767,1764165266937,-500.0,0.00044129,30]
[394936768,1764165266960,-1097.0,0.0004415,30]
[394936769,1764165266985,-1200.71,0.00044183,30]
[394936770,1764165267009,-251.62898849,0.0004421,120]
[394936771,1764165267033,-158.68461035,0.0004425,120]
[394936772,1764165267058,-554.37,0.00044403,30]
[394936773,1764165267082,-5588.3,0.0004444,120]
[394936774,1764165267107,-1200.71,0.00044457,30]
[394936775,1764165267131,-176.0,0.000445,120]
[394936776,1764165267155,-152.0,0.000445,120]
[394936777,1764165267178,-407.19694216,0.000445,120]
[394936778,1764165267202,-4337.56,0.000445,14]
[394936779,1764165267228,-930.585557,0.000445,33]
[394936780,1764165267367,-1200.71,0.00044731,30]
[394936781,1764165267392,-437.98788763,0.000448,120]
[394936782,1764165267416,-514.00782238,0.0004489,120]
[394936783,1764165267440,-1097.19751179,0.000449,30]
[394936784,1764165267464,-214.0,0.0004496,30]
[394936785,1764165267488,-10000.0,0.0004499,30]
[394936786,1764165267511,-1111.01588049,0.00044999,60]
[394936787,1764165267535,-28772.61703917,0.00045,10]